[Event "*** Titled Tuesday 3|2 Blitz (Early)"]
[Site "Chess.com"]
[Date "2017.01.03"]
[Round "2"]
[White "chesswooog"]
[Black "IMprovidence"]
[Result "1-0"]
[WhiteElo "2119"]
[BlackElo "2207"]
[TimeControl "180+2"]
[EndTime "11:23:50 PST"]
[Termination "chesswooog won by checkmate"]

1. e4 {[%clk 0:02:59.4]} 1... c5 {[%clk 0:02:59]} 2. d4 {[%clk 0:03:00.1]} 2...
cxd4 {[%clk 0:02:56.3]} 3. c3 {[%clk 0:03:00.1]} 3... Nf6 {[%clk 0:02:57]} 4. e5
{[%clk 0:03:00.5]} 4... Nd5 {[%clk 0:02:58.1]} 5. Nf3 {[%clk 0:03:02]} 5... Nc6
{[%clk 0:02:58.3]} 6. Bc4 {[%clk 0:03:02.3]} 6... e6 {[%clk 0:02:56.1]} 7. O-O
{[%clk 0:03:00.8]} 7... d6 {[%clk 0:02:55]} 8. exd6 {[%clk 0:02:59.6]} 8... Bxd6
{[%clk 0:02:55.2]} 9. cxd4 {[%clk 0:02:58.4]} 9... O-O {[%clk 0:02:55.4]} 10.
Nc3 {[%clk 0:02:58.6]} 10... Nxc3 {[%clk 0:02:49.5]} 11. bxc3 {[%clk 0:02:59.4]}
11... b6 {[%clk 0:02:48.1]} 12. Re1 {[%clk 0:02:55.6]} 12... Bb7 {[%clk
0:02:46.7]} 13. Bd3 {[%clk 0:02:51.9]} 13... g6 {[%clk 0:02:28]} 14. Bh6 {[%clk
0:02:48.3]} 14... Re8 {[%clk 0:02:28.2]} 15. Qd2 {[%clk 0:02:00.7]} 15... Rc8
{[%clk 0:02:17]} 16. Rad1 {[%clk 0:01:46.1]} 16... Qc7 {[%clk 0:02:03.2]} 17. h4
{[%clk 0:01:36.3]} 17... Ne7 {[%clk 0:01:59.1]} 18. Qg5 {[%clk 0:01:09.1]} 18...
Nf5 {[%clk 0:01:38]} 19. Bxf5 {[%clk 0:01:07]} 19... exf5 {[%clk 0:01:38.4]} 20.
Qf6 {[%clk 0:01:06.8]} 20... Bf8 {[%clk 0:01:38.3]} 21. Bxf8 {[%clk 0:01:05.8]}
21... Rxf8 {[%clk 0:01:38.5]} 22. Re7 {[%clk 0:01:02.5]} 22... Qc6 {[%clk
0:01:30.5]} 23. Qg5 {[%clk 0:00:48]} 23... Qa4 {[%clk 0:01:00.9]} 24. Rd3 {[%clk
0:00:25.4]} 24... Qc2 {[%clk 0:00:31.9]} 25. Rde3 {[%clk 0:00:25.1]} 25... Qc1+
{[%clk 0:00:31.3]} 26. Kh2 {[%clk 0:00:25.9]} 26... Bxf3 {[%clk 0:00:31.2]} 27.
Rxf3 {[%clk 0:00:23.9]} 27... Qxg5 {[%clk 0:00:30.9]} 28. hxg5 {[%clk
0:00:25.8]} 28... a5 {[%clk 0:00:21.9]} 29. Rb7 {[%clk 0:00:23.6]} 29... Rc6
{[%clk 0:00:20.8]} 30. Re3 {[%clk 0:00:23.6]} 30... f4 {[%clk 0:00:20.6]} 31.
Ree7 {[%clk 0:00:23.2]} 31... Rxc3 {[%clk 0:00:21.2]} 32. Rxb6 {[%clk 0:00:23]}
32... Rc2 {[%clk 0:00:22.2]} 33. d5 {[%clk 0:00:16.9]} 33... Rxa2 {[%clk
0:00:21.1]} 34. d6 {[%clk 0:00:16.1]} 34... Rd2 {[%clk 0:00:21.9]} 35. d7 {[%clk
0:00:16.8]} 35... a4 {[%clk 0:00:22.9]} 36. Ra6 {[%clk 0:00:17.4]} 36... Kg7
{[%clk 0:00:23.6]} 37. Rxa4 {[%clk 0:00:18]} 37... Rd8 {[%clk 0:00:23.7]} 38.
Ra7 {[%clk 0:00:19.1]} 38... Rxf2 {[%clk 0:00:23.3]} 39. Re8 {[%clk 0:00:19.4]}
39... f3 {[%clk 0:00:23.4]} 40. Rxd8 {[%clk 0:00:17.5]} 40... Rxg2+ {[%clk
0:00:24]} 41. Kh3 {[%clk 0:00:18.6]} 41... Rxg5 {[%clk 0:00:24.9]} 42. Rg8+
{[%clk 0:00:18.9]} 42... Kh6 {[%clk 0:00:25.8]} 43. d8=Q {[%clk 0:00:19.5]}
43... f2 {[%clk 0:00:25.5]} 44. Qxg5+ {[%clk 0:00:20.1]} 44... Kxg5 {[%clk
0:00:25.5]} 45. Kg2 {[%clk 0:00:20.1]} 45... h5 {[%clk 0:00:24.5]} 46. Rxf7
{[%clk 0:00:20.4]} 46... Kh4 {[%clk 0:00:24.3]} 47. Rxg6 {[%clk 0:00:18.4]}
47... f1=Q+ {[%clk 0:00:19.8]} 48. Kxf1 {[%clk 0:00:19.5]} 48... Kh3 {[%clk
0:00:21.1]} 49. Rh7 {[%clk 0:00:20]} 49... h4 {[%clk 0:00:21.3]} 50. Kf2 {[%clk
0:00:20.9]} 50... Kh2 {[%clk 0:00:21.8]} 51. Rxh4# {[%clk 0:00:21.9]} 1-0

[Event "*** Titled Tuesday 3|2 Blitz (Early)"]
[Site "Chess.com"]
[Date "2017.01.03"]
[Round "2"]
[White "Marreuh"]
[Black "davidarenas1224"]
[Result "0-1"]
[WhiteElo "2098"]
[BlackElo "2194"]
[TimeControl "180+2"]
[EndTime "11:24:01 PST"]
[Termination "davidarenas1224 won by resignation"]

1. e4 {[%clk 0:03:02]} 1... c5 {[%clk 0:03:00.3]} 2. c3 {[%clk 0:03:02.9]} 2...
d5 {[%clk 0:02:58.4]} 3. exd5 {[%clk 0:03:04.8]} 3... Qxd5 {[%clk 0:03:00.3]} 4.
d4 {[%clk 0:03:06.2]} 4... g6 {[%clk 0:03:00.4]} 5. Na3 {[%clk 0:03:04.7]} 5...
Bg7 {[%clk 0:02:57.2]} 6. Nf3 {[%clk 0:03:05.2]} 6... Nf6 {[%clk 0:02:46.5]} 7.
Bc4 {[%clk 0:03:00.8]} 7... Qe4+ {[%clk 0:02:45.5]} 8. Be3 {[%clk 0:03:00.7]}
8... O-O {[%clk 0:02:42.8]} 9. dxc5 {[%clk 0:03:01.1]} 9... Bg4 {[%clk
0:02:37.6]} 10. h3 {[%clk 0:02:37.5]} 10... Bxf3 {[%clk 0:02:33.5]} 11. Qxf3
{[%clk 0:02:39.4]} 11... Qxf3 {[%clk 0:02:34.4]} 12. gxf3 {[%clk 0:02:40.3]}
12... Nbd7 {[%clk 0:02:31.1]} 13. Bd4 {[%clk 0:02:11]} 13... Rfc8 {[%clk
0:02:21.6]} 14. b4 {[%clk 0:02:06.7]} 14... a5 {[%clk 0:02:16.3]} 15. Nc2 {[%clk
0:01:53.6]} 15... axb4 {[%clk 0:02:09.6]} 16. cxb4 {[%clk 0:01:48.9]} 16... b6
{[%clk 0:02:10]} 17. Bb2 {[%clk 0:00:48.8]} 17... bxc5 {[%clk 0:02:09.7]} 18. b5
{[%clk 0:00:50]} 18... Nb6 {[%clk 0:02:08]} 19. Ne3 {[%clk 0:00:49.5]} 19... Bh6
{[%clk 0:02:01.3]} 20. Bxf6 {[%clk 0:00:26.6]} 20... exf6 {[%clk 0:01:59.9]} 21.
Bd5 {[%clk 0:00:28.2]} 21... Ra3 {[%clk 0:01:48.9]} 22. Nc4 {[%clk 0:00:23.9]}
22... Re8+ {[%clk 0:01:31.8]} 23. Kf1 {[%clk 0:00:21.4]} 23... Nxc4 {[%clk
0:01:24.8]} 24. Bxc4 {[%clk 0:00:23.3]} 24... Rxf3 {[%clk 0:01:26.4]} 25. Kg2
{[%clk 0:00:24.8]} 25... Rf4 {[%clk 0:01:26.2]} 26. Bd5 {[%clk 0:00:20.3]} 26...
Re5 {[%clk 0:01:16.1]} 27. Bc6 {[%clk 0:00:19.9]} 27... Rg5+ {[%clk 0:01:13]}
28. Kf1 {[%clk 0:00:19]} 28... Rgf5 {[%clk 0:01:10.9]} 29. Rh2 {[%clk
0:00:19.4]} 29... Rb4 {[%clk 0:01:06.9]} 30. a4 {[%clk 0:00:19.3]} 30... Bf4
{[%clk 0:00:55.1]} 31. Rg2 {[%clk 0:00:19.8]} 31... Be5 {[%clk 0:00:56]} 32. Ra2
{[%clk 0:00:18.7]} 32... Bd4 {[%clk 0:00:46]} 33. a5 {[%clk 0:00:18.7]} 33...
Re5 {[%clk 0:00:46.5]} 34. Kg1 {[%clk 0:00:16.6]} 34... Re1+ {[%clk 0:00:40.1]}
35. Kh2 {[%clk 0:00:17.9]} 35... Be5+ {[%clk 0:00:41.1]} 36. Rg3 {[%clk
0:00:19]} 36... h5 {[%clk 0:00:40.8]} 37. Kg2 {[%clk 0:00:19.1]} 37... Bxg3
{[%clk 0:00:40.7]} 38. fxg3 {[%clk 0:00:20.8]} 38... Reb1 {[%clk 0:00:23.8]} 39.
a6 {[%clk 0:00:21.5]} 39... R4b2+ {[%clk 0:00:22.7]} 40. Rxb2 {[%clk 0:00:22.8]}
40... Rxb2+ {[%clk 0:00:24.6]} 41. Kf3 {[%clk 0:00:24.4]} 41... Ra2 {[%clk
0:00:26.4]} 42. Bb7 {[%clk 0:00:24.1]} 42... c4 {[%clk 0:00:26.3]} 43. b6 {[%clk
0:00:24.3]} 43... c3 {[%clk 0:00:26.3]} 44. a7 {[%clk 0:00:22.6]} 44... c2
{[%clk 0:00:24.9]} 45. Bd5 {[%clk 0:00:23.8]} 45... c1=Q {[%clk 0:00:22.9]} 46.
Bxa2 {[%clk 0:00:24.9]} 46... Qc3+ {[%clk 0:00:22.1]} 47. Ke2 {[%clk 0:00:23.5]}
47... Qc2+ {[%clk 0:00:22.8]} 48. Ke3 {[%clk 0:00:23.4]} 48... Qxa2 {[%clk
0:00:14.5]} 49. Kd4 {[%clk 0:00:25.3]} 49... Qa6 {[%clk 0:00:15.1]} 50. Kc5
{[%clk 0:00:26.6]} 50... Qb7 {[%clk 0:00:16.2]} 51. Kb5 {[%clk 0:00:26.4]} 51...
g5 {[%clk 0:00:18.1]} 52. Kc5 {[%clk 0:00:27.4]} 52... h4 {[%clk 0:00:19]} 53.
Kd4 {[%clk 0:00:29.3]} 53... hxg3 {[%clk 0:00:15.1]} 0-1

[Event "*** Titled Tuesday 3|2 Blitz (Early)"]
[Site "Chess.com"]
[Date "2017.01.03"]
[Round "2"]
[White "AlexanderL"]
[Black "Aygehovit1992"]
[Result "1/2-1/2"]
[WhiteElo "2585"]
[BlackElo "2442"]
[TimeControl "180+2"]
[EndTime "11:24:10 PST"]
[Termination "Game drawn - insufficient material"]

1. d4 {[%clk 0:03:01.9]} 1... Nf6 {[%clk 0:03:00.4]} 2. c4 {[%clk 0:03:02.6]}
2... g6 {[%clk 0:03:01.5]} 3. Nc3 {[%clk 0:03:03.4]} 3... d5 {[%clk 0:03:01.7]}
4. cxd5 {[%clk 0:03:04.9]} 4... Nxd5 {[%clk 0:03:02.3]} 5. e4 {[%clk 0:03:04.2]}
5... Nxc3 {[%clk 0:03:02.9]} 6. bxc3 {[%clk 0:03:06.1]} 6... Bg7 {[%clk
0:03:03.9]} 7. Qa4+ {[%clk 0:03:07.3]} 7... Qd7 {[%clk 0:03:03]} 8. Bb5 {[%clk
0:03:07.1]} 8... c6 {[%clk 0:03:04.1]} 9. Be2 {[%clk 0:03:07.9]} 9... b5 {[%clk
0:03:01.5]} 10. Qc2 {[%clk 0:03:02.9]} 10... Ba6 {[%clk 0:02:49.1]} 11. Nf3
{[%clk 0:03:00.5]} 11... c5 {[%clk 0:02:50.3]} 12. O-O {[%clk 0:02:55.8]} 12...
cxd4 {[%clk 0:02:49.6]} 13. cxd4 {[%clk 0:02:54.6]} 13... O-O {[%clk 0:02:50.7]}
14. Be3 {[%clk 0:02:50.4]} 14... Rc8 {[%clk 0:02:49]} 15. Qb2 {[%clk 0:02:49]}
15... b4 {[%clk 0:02:48.9]} 16. Rfc1 {[%clk 0:02:43.2]} 16... Bxe2 {[%clk
0:02:45.1]} 17. Qxe2 {[%clk 0:02:43.4]} 17... a5 {[%clk 0:02:20]} 18. Rxc8+
{[%clk 0:02:39.6]} 18... Qxc8 {[%clk 0:02:21]} 19. Rc1 {[%clk 0:02:41.4]} 19...
Qa6 {[%clk 0:02:21.3]} 20. Kf1 {[%clk 0:02:19.1]} 20... Kf8 {[%clk 0:02:08]} 21.
Qxa6 {[%clk 0:02:03.9]} 21... Nxa6 {[%clk 0:02:08.6]} 22. Rc6 {[%clk 0:02:05.1]}
22... Ke8 {[%clk 0:02:01.8]} 23. Rb6 {[%clk 0:01:52.8]} 23... a4 {[%clk
0:01:43.2]} 24. Bd2 {[%clk 0:01:12]} 24... b3 {[%clk 0:01:25.1]} 25. axb3 {[%clk
0:01:13.9]} 25... a3 {[%clk 0:01:26.7]} 26. Bc3 {[%clk 0:01:14.3]} 26... a2
{[%clk 0:01:28]} 27. Ke2 {[%clk 0:00:26.4]} 27... Nc5 {[%clk 0:01:19.8]} 28. Nd2
{[%clk 0:00:27.7]} 28... Nd7 {[%clk 0:01:20.6]} 29. Rc6 {[%clk 0:00:29.1]} 29...
e5 {[%clk 0:01:10.9]} 30. d5 {[%clk 0:00:10.2]} 30... a1=Q {[%clk 0:01:11.2]}
31. Bxa1 {[%clk 0:00:11.5]} 31... Rxa1 {[%clk 0:01:12.5]} 32. Rc8+ {[%clk
0:00:11.2]} 32... Ke7 {[%clk 0:01:13.3]} 33. Nc4 {[%clk 0:00:13.1]} 33... Ra2+
{[%clk 0:01:10.1]} 34. Kd3 {[%clk 0:00:10.3]} 34... Rxf2 {[%clk 0:01:03.9]} 35.
b4 {[%clk 0:00:11.8]} 35... f5 {[%clk 0:00:55.9]} 36. d6+ {[%clk 0:00:10.7]}
36... Kf7 {[%clk 0:00:52.1]} 37. Rd8 {[%clk 0:00:12.1]} 37... Nf6 {[%clk
0:00:39.1]} 38. exf5 {[%clk 0:00:13.5]} 38... gxf5 {[%clk 0:00:29.7]} 39. Nxe5+
{[%clk 0:00:14.7]} 39... Ke6 {[%clk 0:00:30.6]} 40. Nf3 {[%clk 0:00:15.4]} 40...
Rxg2 {[%clk 0:00:23]} 41. Nd4+ {[%clk 0:00:16.7]} 41... Kd5 {[%clk 0:00:24.1]}
42. d7 {[%clk 0:00:18.2]} 42... Rxh2 {[%clk 0:00:20.7]} 43. Nxf5 {[%clk
0:00:19.6]} 43... Rh3+ {[%clk 0:00:21.7]} 44. Ke2 {[%clk 0:00:20.9]} 44... Nxd7
{[%clk 0:00:10.5]} 45. Rxd7+ {[%clk 0:00:06.8]} 45... Ke6 {[%clk 0:00:11.2]} 46.
Rxg7 {[%clk 0:00:07.7]} 46... Kxf5 {[%clk 0:00:12.3]} 47. Kd2 {[%clk 0:00:09.1]}
47... Rb3 {[%clk 0:00:11.3]} 48. Rb7 {[%clk 0:00:10.3]} 48... h5 {[%clk
0:00:10.6]} 49. Kc2 {[%clk 0:00:11.8]} 49... Re3 {[%clk 0:00:11]} 50. Rh7 {[%clk
0:00:12.4]} 50... Kg6 {[%clk 0:00:11.7]} 51. Rh8 {[%clk 0:00:13.8]} 51... Re7
{[%clk 0:00:10]} 52. Kd3 {[%clk 0:00:12.5]} 52... Kg5 {[%clk 0:00:09.2]} 53. b5
{[%clk 0:00:13.2]} 53... h4 {[%clk 0:00:09.8]} 54. Kd4 {[%clk 0:00:12.9]} 54...
Kg4 {[%clk 0:00:10.5]} 55. b6 {[%clk 0:00:14.3]} 55... h3 {[%clk 0:00:11.4]} 56.
Kc5 {[%clk 0:00:14.9]} 56... Kg3 {[%clk 0:00:12.6]} 57. Kc6 {[%clk 0:00:15.8]}
57... Rg7 {[%clk 0:00:13.3]} 58. b7 {[%clk 0:00:16.2]} 58... Rxb7 {[%clk
0:00:14]} 59. Kxb7 {[%clk 0:00:18.1]} 59... h2 {[%clk 0:00:15.6]} 60. Rxh2
{[%clk 0:00:19.2]} 60... Kxh2 {[%clk 0:00:16.8]} 1/2-1/2

[Event "*** Titled Tuesday 3|2 Blitz (Early)"]
[Site "Chess.com"]
[Date "2017.01.03"]
[Round "2"]
[White "platy3"]
[Black "danir29"]
[Result "0-1"]
[WhiteElo "2629"]
[BlackElo "2461"]
[TimeControl "180+2"]
[EndTime "11:24:22 PST"]
[Termination "danir29 won by resignation"]

1. e4 {[%clk 0:03:02]} 1... e5 {[%clk 0:02:59.1]} 2. Nf3 {[%clk 0:03:02.9]} 2...
Nc6 {[%clk 0:02:58.2]} 3. Bb5 {[%clk 0:03:04.2]} 3... Nf6 {[%clk 0:02:57.5]} 4.
d3 {[%clk 0:03:04.8]} 4... Bc5 {[%clk 0:02:55.5]} 5. c3 {[%clk 0:03:05.5]} 5...
O-O {[%clk 0:02:52.9]} 6. O-O {[%clk 0:03:06]} 6... d6 {[%clk 0:02:51.5]} 7. h3
{[%clk 0:03:05.7]} 7... Ne7 {[%clk 0:02:45.8]} 8. d4 {[%clk 0:03:02.3]} 8... Bb6
{[%clk 0:02:44.5]} 9. Bd3 {[%clk 0:03:03.2]} 9... Ng6 {[%clk 0:02:41.3]} 10. Re1
{[%clk 0:02:58.7]} 10... Re8 {[%clk 0:02:27.1]} 11. Nbd2 {[%clk 0:02:54.3]}
11... c6 {[%clk 0:02:23.4]} 12. Nf1 {[%clk 0:02:51.4]} 12... h6 {[%clk
0:02:23.2]} 13. Ng3 {[%clk 0:02:51.7]} 13... Nf4 {[%clk 0:02:21]} 14. Bxf4
{[%clk 0:02:21.9]} 14... exf4 {[%clk 0:02:21.8]} 15. Nf1 {[%clk 0:02:23.5]}
15... Nh7 {[%clk 0:02:07.9]} 16. e5 {[%clk 0:02:12.7]} 16... dxe5 {[%clk
0:02:01.9]} 17. Nxe5 {[%clk 0:02:07.7]} 17... Ng5 {[%clk 0:01:51.1]} 18. Qh5
{[%clk 0:02:07.3]} 18... Bc7 {[%clk 0:01:22.4]} 19. Rad1 {[%clk 0:01:58.4]}
19... Bxe5 {[%clk 0:01:19.3]} 20. dxe5 {[%clk 0:01:57.1]} 20... Qe7 {[%clk
0:01:19]} 21. Nh2 {[%clk 0:01:43.4]} 21... Be6 {[%clk 0:01:15.7]} 22. h4 {[%clk
0:01:33.3]} 22... Nh7 {[%clk 0:01:15.9]} 23. Ng4 {[%clk 0:01:34.6]} 23... Rad8
{[%clk 0:01:07.5]} 24. Nxh6+ {[%clk 0:01:15.8]} 24... gxh6 {[%clk 0:01:07.7]}
25. Qxh6 {[%clk 0:01:17.7]} 25... Nf8 {[%clk 0:01:03.3]} 26. Qxf4 {[%clk
0:01:13]} 26... Ng6 {[%clk 0:01:03.9]} 27. Bxg6 {[%clk 0:01:05.3]} 27... fxg6
{[%clk 0:01:05.8]} 28. Rd6 {[%clk 0:01:00.1]} 28... Bf5 {[%clk 0:01:00.8]} 29.
Re3 {[%clk 0:00:56.6]} 29... Rxd6 {[%clk 0:00:49.8]} 30. exd6 {[%clk 0:00:57.4]}
30... Qf7 {[%clk 0:00:50.3]} 31. Rxe8+ {[%clk 0:00:41.2]} 31... Qxe8 {[%clk
0:00:52.2]} 32. h5 {[%clk 0:00:42.7]} 32... Kg7 {[%clk 0:00:47.4]} 33. g4 {[%clk
0:00:33.8]} 33... Bd7 {[%clk 0:00:45.2]} 34. g5 {[%clk 0:00:28.9]} 34... gxh5
{[%clk 0:00:35.1]} 35. Qf6+ {[%clk 0:00:28.5]} 35... Kg8 {[%clk 0:00:36.1]} 36.
Kh2 {[%clk 0:00:22.9]} 36... Qe6 {[%clk 0:00:35.2]} 37. Qd8+ {[%clk 0:00:15.8]}
37... Kg7 {[%clk 0:00:35.4]} 38. Qc7 {[%clk 0:00:13.9]} 38... Kg6 {[%clk
0:00:32.2]} 39. Qxb7 {[%clk 0:00:15]} 39... Qxd6+ {[%clk 0:00:31.8]} 40. Kg1
{[%clk 0:00:15.4]} 40... Bh3 {[%clk 0:00:28.3]} 41. Qxa7 {[%clk 0:00:14.8]}
41... Qd5 {[%clk 0:00:26.4]} 42. f3 {[%clk 0:00:03.7]} 42... Qxg5+ {[%clk
0:00:26.1]} 43. Kf2 {[%clk 0:00:03.4]} 43... Qd2+ {[%clk 0:00:26.3]} 44. Kg3
{[%clk 0:00:04.1]} 44... Qg2+ {[%clk 0:00:24.5]} 45. Kf4 {[%clk 0:00:04.3]}
45... Qg5+ {[%clk 0:00:24.7]} 46. Ke4 {[%clk 0:00:05.7]} 46... Qd5+ {[%clk
0:00:18.3]} 47. Ke3 {[%clk 0:00:06]} 47... Qe5+ {[%clk 0:00:19.5]} 48. Kf2
{[%clk 0:00:07]} 48... Qh2+ {[%clk 0:00:19.9]} 49. Ke1 {[%clk 0:00:07.1]} 49...
Qh1+ {[%clk 0:00:20.8]} 50. Kd2 {[%clk 0:00:06.1]} 50... Qxf3 {[%clk 0:00:20.7]}
51. Qc7 {[%clk 0:00:04.1]} 51... Bf5 {[%clk 0:00:21.2]} 52. Qd6+ {[%clk
0:00:04.4]} 52... Kg5 {[%clk 0:00:22.5]} 53. Qe7+ {[%clk 0:00:05.9]} 53... Kg4
{[%clk 0:00:23.8]} 54. Qg7+ {[%clk 0:00:06]} 54... Kh3 {[%clk 0:00:24.4]} 55.
Qh6 {[%clk 0:00:03.4]} 55... Qd3+ {[%clk 0:00:24.2]} 56. Ke1 {[%clk 0:00:04.5]}
56... h4 {[%clk 0:00:24.6]} 57. a4 {[%clk 0:00:05.3]} 57... Qb1+ {[%clk
0:00:24.4]} 58. Kf2 {[%clk 0:00:06.7]} 58... Qxb2+ {[%clk 0:00:25.7]} 59. Ke1
{[%clk 0:00:07]} 59... Qb1+ {[%clk 0:00:26.4]} 60. Kf2 {[%clk 0:00:07.7]} 60...
Qc2+ {[%clk 0:00:27.5]} 61. Kf1 {[%clk 0:00:07.8]} 61... Qxa4 {[%clk 0:00:26]}
62. Qe3+ {[%clk 0:00:08.1]} 62... Kg4 {[%clk 0:00:25.9]} 63. Qe2+ {[%clk
0:00:09.4]} 63... Kg5 {[%clk 0:00:27.1]} 64. Qe3+ {[%clk 0:00:10.5]} 64... Qf4+
{[%clk 0:00:28]} 0-1

[Event "*** Titled Tuesday 3|2 Blitz (Early)"]
[Site "Chess.com"]
[Date "2017.01.03"]
[Round "2"]
[White "jcgs1030"]
[Black "162a54f5d"]
[Result "0-1"]
[WhiteElo "2318"]
[BlackElo "2391"]
[TimeControl "180+2"]
[EndTime "11:24:35 PST"]
[Termination "162a54f5d won by resignation"]

1. e4 {[%clk 0:03:02]} 1... d6 {[%clk 0:03:00.8]} 2. d4 {[%clk 0:03:01.8]} 2...
Nf6 {[%clk 0:03:01.7]} 3. Nc3 {[%clk 0:03:02.4]} 3... e5 {[%clk 0:02:59.8]} 4.
Nf3 {[%clk 0:03:01.7]} 4... Nbd7 {[%clk 0:02:59.5]} 5. Bc4 {[%clk 0:03:01.5]}
5... Be7 {[%clk 0:02:57.8]} 6. O-O {[%clk 0:02:51]} 6... O-O {[%clk 0:02:55.3]}
7. a4 {[%clk 0:02:51.6]} 7... exd4 {[%clk 0:02:39.8]} 8. Qxd4 {[%clk 0:02:48.6]}
8... Nc5 {[%clk 0:02:38.1]} 9. b4 {[%clk 0:02:39.2]} 9... Ne6 {[%clk 0:02:18.6]}
10. Qd3 {[%clk 0:02:38.8]} 10... a5 {[%clk 0:02:19.2]} 11. b5 {[%clk 0:02:37.9]}
11... Nc5 {[%clk 0:02:18.2]} 12. Qd4 {[%clk 0:02:38.8]} 12... Be6 {[%clk
0:02:06.8]} 13. Bb2 {[%clk 0:02:39.1]} 13... Re8 {[%clk 0:01:45.2]} 14. Rfe1
{[%clk 0:02:35.8]} 14... Bf8 {[%clk 0:01:41.6]} 15. Nd5 {[%clk 0:02:30.4]} 15...
Nxd5 {[%clk 0:01:37.8]} 16. Bxd5 {[%clk 0:02:27.5]} 16... Qd7 {[%clk 0:01:24.9]}
17. Ng5 {[%clk 0:02:21.5]} 17... Bxd5 {[%clk 0:01:23.5]} 18. exd5 {[%clk
0:02:21.7]} 18... Rxe1+ {[%clk 0:01:23.1]} 19. Rxe1 {[%clk 0:02:23.4]} 19... Re8
{[%clk 0:01:24.5]} 20. Re3 {[%clk 0:02:20.5]} 20... h6 {[%clk 0:01:24.4]} 21.
Nf3 {[%clk 0:02:14.8]} 21... Rxe3 {[%clk 0:01:21.9]} 22. fxe3 {[%clk 0:02:13.4]}
22... Qf5 {[%clk 0:01:22.8]} 23. Ne1 {[%clk 0:02:14]} 23... b6 {[%clk
0:01:12.3]} 24. Nd3 {[%clk 0:02:09.6]} 24... Ne4 {[%clk 0:01:05]} 25. Nf4 {[%clk
0:01:54]} 25... Nc5 {[%clk 0:00:59.7]} 26. Nd3 {[%clk 0:01:53.1]} 26... Ne4
{[%clk 0:00:57.8]} 27. Nf4 {[%clk 0:01:40.8]} 27... Nc5 {[%clk 0:00:57.8]} 28.
Nd3 {[%clk 0:01:39.5]} 28... Ne4 {[%clk 0:00:58.7]} 29. Qc4 {[%clk 0:01:35.2]}
29... Nd2 {[%clk 0:00:52.1]} 30. Qf4 {[%clk 0:01:35.1]} 30... Qxd5 {[%clk
0:00:51.7]} 31. Bd4 {[%clk 0:01:16.8]} 31... Qc4 {[%clk 0:00:44.1]} 32. Qf2
{[%clk 0:01:05.4]} 32... Qxc2 {[%clk 0:00:36.6]} 33. Ne1 {[%clk 0:01:05.8]}
33... Qd1 {[%clk 0:00:36.4]} 34. h3 {[%clk 0:00:56.3]} 34... Nc4 {[%clk
0:00:23.7]} 35. Kh2 {[%clk 0:00:54.1]} 35... Qxa4 {[%clk 0:00:24.7]} 36. Nf3
{[%clk 0:00:47.1]} 36... Qxb5 {[%clk 0:00:24.8]} 37. Nh4 {[%clk 0:00:47.8]}
37... Qh5 {[%clk 0:00:22.8]} 38. Nf5 {[%clk 0:00:43.3]} 38... d5 {[%clk
0:00:24]} 39. g4 {[%clk 0:00:39.9]} 39... Qg6 {[%clk 0:00:23.8]} 40. Bxg7 {[%clk
0:00:40]} 40... Bd6+ {[%clk 0:00:18]} 41. Kg2 {[%clk 0:00:39.3]} 41... Kh7
{[%clk 0:00:19]} 42. Bxh6 {[%clk 0:00:39.6]} 42... Qe6 {[%clk 0:00:19.5]} 43.
Qh4 {[%clk 0:00:39.4]} 43... Kg8 {[%clk 0:00:17.4]} 44. Bg7 {[%clk 0:00:39.4]}
44... Qe4+ {[%clk 0:00:17.6]} 45. Kf2 {[%clk 0:00:38.8]} 45... Qc2+ {[%clk
0:00:18.5]} 46. Kf3 {[%clk 0:00:39.6]} 46... Qd1+ {[%clk 0:00:19.6]} 47. Kf2
{[%clk 0:00:40.2]} 47... Qd2+ {[%clk 0:00:18.8]} 48. Kf1 {[%clk 0:00:41.3]}
48... Qd1+ {[%clk 0:00:19.8]} 49. Kf2 {[%clk 0:00:41.6]} 49... Qd2+ {[%clk
0:00:21]} 50. Kf1 {[%clk 0:00:42.6]} 50... Qc1+ {[%clk 0:00:21.5]} 51. Ke2
{[%clk 0:00:41.9]} 51... Qc2+ {[%clk 0:00:22.1]} 52. Kf1 {[%clk 0:00:40.9]}
52... Qd1+ {[%clk 0:00:22.8]} 53. Kf2 {[%clk 0:00:41.8]} 53... Qd2+ {[%clk
0:00:23.9]} 54. Kf1 {[%clk 0:00:42.8]} 54... Qd1+ {[%clk 0:00:25.2]} 55. Kf2
{[%clk 0:00:43.7]} 55... Qc2+ {[%clk 0:00:26.6]} 56. Ke1 {[%clk 0:00:44.4]}
56... Bb4+ {[%clk 0:00:26.5]} 57. Kf1 {[%clk 0:00:44]} 57... Qd1+ {[%clk
0:00:27.8]} 58. Kg2 {[%clk 0:00:43.7]} 58... Qe2+ {[%clk 0:00:28.5]} 59. Kg1
{[%clk 0:00:44]} 59... Qe1+ {[%clk 0:00:28.9]} 60. Qxe1 {[%clk 0:00:44.5]} 60...
Bxe1 {[%clk 0:00:30.8]} 61. Bd4 {[%clk 0:00:44.7]} 61... a4 {[%clk 0:00:31.9]}
62. Kf1 {[%clk 0:00:45]} 62... Bb4 {[%clk 0:00:31.5]} 63. h4 {[%clk 0:00:44]}
63... Nd2+ {[%clk 0:00:31.9]} 64. Ke2 {[%clk 0:00:44.1]} 64... Ne4 {[%clk
0:00:32.9]} 65. Nh6+ {[%clk 0:00:39.3]} 65... Kf8 {[%clk 0:00:33.4]} 66. g5
{[%clk 0:00:40.4]} 66... c5 {[%clk 0:00:32.9]} 67. Be5 {[%clk 0:00:41.1]} 67...
Bc3 {[%clk 0:00:33.1]} 68. Bc7 {[%clk 0:00:39.8]} 68... b5 {[%clk 0:00:33.3]}
69. Nf5 {[%clk 0:00:36.8]} 69... a3 {[%clk 0:00:33.9]} 70. Nd6 {[%clk
0:00:28.6]} 70... a2 {[%clk 0:00:32.2]} 71. Nxe4 {[%clk 0:00:24.8]} 71... dxe4
{[%clk 0:00:34.1]} 72. Bd6+ {[%clk 0:00:25.5]} 72... Kg8 {[%clk 0:00:35.5]} 0-1